[Event "CCT Chessable Masters D-III 2024"]
[Site "Online"]
[Date "2024.02.02"]
[Round "51"]
[White "Dubov, Daniil"]
[Black "Tabatabaei, M. Amin"]
[Result "1/2-1/2"]
[ECO "A07"]
[WhiteElo "2708"]
[BlackElo "2696"]
[Annotator "RC"]
[PlyCount "199"]
[EventDate "2024.01.12"]
[EventType "k.o."]
[EventCountry "NET"]
[SourceTitle "playchess.com"]
[Source "ChessBase"]
[SourceQuality "1"]
[TimeControl "600+2"]

1. g3 {[%emt 0:00:02]} d5 {[%emt 0:00:12]} 2. Nf3 {[%emt 0:00:03]} Nf6 {[%emt 0:00:03]} 3. Bg2 {[%emt 0:00:01]} c6 {[%emt 0:00:01]} 4. O-O {[%emt 0:00:01]} Bg4 {[%emt 0:00:00]} 5. h3 {[%emt 0:00:01]} Bxf3 {[%emt 0:00:01]} 6. Bxf3 {[%emt 0:00:01]} e5 {[%emt 0:00:02]} 7. d3 {[%emt 0:00:00]} a5 {[%emt 0:00:00]} 8. Bg2 {[%emt 0:00:02]} a4 {[%emt 0:00:03]} 9. a3 {[%emt 0:00:03]} Bc5 {[%emt 0:00:02]} 10. Nd2 {[%emt 0:00:02]} O-O {[%emt 0:00:01]} 11. e3 {[%emt 0:00:01]} Re8 {[%emt 0:00:05]} 12. Re1 {[%emt 0:00:01]} Nbd7 {[%emt 0:00:02]} 13. Nf1 {[%emt 0:00:02]} b5 {[%emt 0:00:03]} 14. g4 {[%emt 0:00:01]} Nf8 {[%emt 0:00:04]} 15. Ng3 {[%emt 0:00:26]} Ng6 {[%emt 0:00:01]} 16. Nf5 {[%emt 0:00:00]} Ne7 {[%emt 0:00:01]} 17. Nh4 {[%emt 0:00:01]} Ng6 {[%emt 0:00:01]} 18. Nxg6 {[%emt 0:00:01]} hxg6 {[%emt 0:00:01]} 19. Bd2 {[%emt 0:00:06]} Qc7 {[%emt 0:01:28]} 20. Rc1 {[%emt 0:00:04]} Qb6 {[%emt 0:01:02]} 21. g5 {[%emt 0:00:02]} Nd7 {[%emt 0:00:09]} 22. Qg4 {[%emt 0:00:02]} Nf8 {[%emt 0:00:03]} 23. h4 {[%emt 0:00:02]} Ne6 {[%emt 0:00:01]} 24. Re2 {[%emt 0:00:03]} Rab8 {[%emt 0:00:05]} 25. Ra1 {[%emt 0:00:11]} Bf8 {[%emt 0:00:12]} 26. Kh1 {[%emt 0:00:03]} b4 {[%emt 0:00:19]} 27. axb4 {[%emt 0:00:04]} Bxb4 {[%emt 0:00:00]} 28. Bc1 {[%emt 0:00:33]} a3 {[%emt 0:00:11]} 29. c3 {[%emt 0:00:02]} Bf8 {[%emt 0:00:13]} 30. b4 {[%emt 0:00:02]} d4 {[%emt 0:00:15]} 31. Rxa3 {[%emt 0:00:06]} dxc3 {[%emt 0:00:24]} 32. Rxc3 {[%emt 0:00:01]} Qxb4 {[%emt 0:00:00]} 33. Rc4 {[%emt 0:00:17]} Qb3 {[%emt 0:00:11]} 34. Rec2 {[%emt 0:01:24]} Qxd3 {[%emt 0:00:10]} 35. R2c3 {[%emt 0:00:15]} Qb1 {[%emt 0:01:53]} 36. Bxc6 {[%emt 0:00:10]} Rec8 {[%emt 0:00:14]} 37. Kg2 {[%emt 0:00:22]} Rb4 {[%emt 0:00:14]} 38. Rxb4 {[%emt 0:00:11]} Qxb4 {[%emt 0:00:10]} 39. Rc4 {[%emt 0:00:12]} Qb6 {[%emt 0:00:59]} 40. Bd5 {[%emt 0:00:24]} Rxc4 {[%emt 0:00:02]} 41. Qxc4 {[%emt 0:00:00]} Qd6 {[%emt 0:00:14]} 42. Bb2 {[%emt 0:00:09]} Kh7 {[%emt 0:00:56]} 43. Qe4 {[%emt 0:01:13]} Qd7 {[%emt 0:00:25]} 44. h5 {[%emt 0:00:35]} Nxg5 {[%emt 0:00:18]} 45. hxg6+ {[%emt 0:00:04]} Kh6 {[%emt 0:00:01]} 46. Qh4+ {[%emt 0:00:56]} Kxg6 {[%emt 0:00:06]} 47. e4 {[%emt 0:00:01]} f6 {[%emt 0:00:15]} 48. Bc1 {[%emt 0:00:01]} Nf7 {[%emt 0:00:12]} 49. Be3 {[%emt 0:00:12]} Bb4 {[%emt 0:00:06]} 50. Bc4 {[%emt 0:00:24]} Bd2 {[%emt 0:00:07]} 51. Be2 {[%emt 0:01:15]} Nh6 {[%emt 0:00:01]} 52. Bxh6 {[%emt 0:00:02]} Bxh6 {[%emt 0:00:04]} 53. Bg4 {[%emt 0:00:01]} Qe7 {[%emt 0:00:02]} 54. Qh5+ {[%emt 0:00:10]} Kh7 {[%emt 0:00:00]} 55. Bf5+ {[%emt 0:00:00]} Kg8 {[%emt 0:00:01]} 56. Qg6 {[%emt 0:00:00]} Qd8 {[%emt 0:00:03]} 57. Be6+ {[%emt 0:00:03]} Kh8 {[%emt 0:00:00]} 58. Qf7 {[%emt 0:00:04]} Qa8 {[%emt 0:00:03]} 59. Kh3 {[%emt 0:00:03]} Qd8 {[%emt 0:00:04]} 60. Bf5 {[%emt 0:00:06]} Qb8 {[%emt 0:00:02]} 61. Kg4 {[%emt 0:00:02]} Qa8 {[%emt 0:00:02]} 62. Kh5 {[%emt 0:00:16]} Qb8 {[%emt 0:00:01]} 63. f3 {[%emt 0:00:04]} Qa8 {[%emt 0:00:00]} 64. Kg6 {[%emt 0:00:05]} Qg8 {[%emt 0:00:04]} 65. Qd5 {[%emt 0:00:20]} Qf8 {[%emt 0:00:05]} 66. Be6 {[%emt 0:00:05]} Qe8+ {[%emt 0:00:01]} 67. Bf7 {[%emt 0:00:01]} Qc8 {[%emt 0:00:00]} 68. Qd6 {[%emt 0:00:06]} Qa8 {[%emt 0:00:02]} 69. Qe7 {[%emt 0:00:02]} Qc8 {[%emt 0:00:05]} 70. Be6 {[%emt 0:00:12]} Qa8 {[%emt 0:00:01]} 71. Bd7 {[%emt 0:00:02]} Qb8 {[%emt 0:00:02]} 72. Be8 {[%emt 0:00:08]} Qb3 {[%emt 0:00:01]} 73. Bf7 {[%emt 0:00:01]} Qb8 {[%emt 0:00:01]} 74. Bd5 {[%emt 0:00:03]} Qc8 {[%emt 0:00:01]} 75. Qf7 {[%emt 0:00:06]} Qb8 {[%emt 0:00:02]} 76. Be6 {[%emt 0:00:02]} Qd8 {[%emt 0:00:01]} 77. Bc4 {[%emt 0:00:04]} Qb8 {[%emt 0:00:02]} 78. Qd7 {[%emt 0:00:06]} Qa8 {[%emt 0:00:02]} 79. Bf7 {[%emt 0:00:04]} Qb8 {[%emt 0:00:03]} 80. Bd5 {[%emt 0:00:02]} Qf8 {[%emt 0:00:01]} 81. Qe6 {[%emt 0:00:03]} Qd8 {[%emt 0:00:03]} 82. Qf7 {[%emt 0:00:02]} Qc8 {[%emt 0:00:03]} 83. Bc6 {[%emt 0:00:02]} Qg8 {[%emt 0:00:04]} 84. Qd5 {[%emt 0:00:02]} Qxd5 {[%emt 0:00:01]} 85. exd5 {[%emt 0:00:03]} Kg8 {[%emt 0:00:00]} 86. d6 {[%emt 0:00:03]} Kf8 {[%emt 0:00:01]} 87. Kf5 {[%emt 0:00:01]} Kf7 {[%emt 0:00:02]} 88. Bd5+ {[%emt 0:00:02]} Ke8 {[%emt 0:00:01]} 89. Ke6 {[%emt 0:00:00]} Kd8 {[%emt 0:00:02]} 90. Bc6 {[%emt 0:00:02]} Bf4 {[%emt 0:00:01]} 91. Bb5 {[%emt 0:00:01]} Bg3 {[%emt 0:00:01]} 92. Bc6 {[%emt 0:00:02]} Bf4 {[%emt 0:00:01]} 93. Kf7 {[%emt 0:00:00]} e4 {[%emt 0:00:01]} 94. Bxe4 {[%emt 0:00:02]} Bxd6 {[%emt 0:00:01]} 95. Kxg7 {[%emt 0:00:00]} Ke7 {[%emt 0:00:01]} 96. Kg6 {[%emt 0:00:00]} Bc7 {[%emt 0:00:01]} 97. Kf5 {[%emt 0:00:00]} Bd6 {[%emt 0:00:01]} 98. f4 {[%emt 0:00:01]} Bxf4 {[%emt 0:00:01]} 99. Kxf4 {[%emt 0:00:00]} f5 {[%emt 0:00:00]} 100. Bxf5 {[%emt 0:00:00]} 1/2-1/2

[Event "CCT Chessable Masters D-III 2024"]
[Site "Online"]
[Date "2024.02.02"]
[Round "51"]
[White "Tabatabaei, M. Amin"]
[Black "Dubov, Daniil"]
[Result "1-0"]
[ECO "D06"]
[WhiteElo "2696"]
[BlackElo "2708"]
[Annotator "TA"]
[PlyCount "117"]
[EventDate "2024.01.12"]
[EventType "k.o."]
[EventCountry "NET"]
[SourceTitle "playchess.com"]
[Source "ChessBase"]
[SourceQuality "1"]
[TimeControl "600+2"]

{[%evp 28,117,131,150,185,178,177,177,174,179,227,239,239,226,304,299,308,297,464,431,430,340,493,411,403,416,418,418,418,418,418,403,403,403,403,403,403,403,430,430,430,388,430,430,430,430,575,575,552,437,575,547,567,547,532,507,492,403,403,403,403,405,405,405,405,358,763,753,774,745,774,743,744,737,636,642,1848,1257,1360,1198,1122,1020,6770,6770,6027,6068,6068,833,29988,29989,29989,29990]} 1. d4 {[%emt 0:00:16]} Nf6 {[%emt 0:00:09]} 2. c4 {[%emt 0:00:02]} d5 {[%emt 0:00:01]} 3. cxd5 {[%emt 0:00:14]} g6 {[%emt 0:00:01]} 4. Qa4+ {[%emt 0:00:02]} Bd7 {[%emt 0:00:04]} 5. Qb3 {[%emt 0:00:06]} b5 {[%emt 0:00:43]} 6. Nf3 {[%emt 0:00:29]} Bg7 {[%emt 0:00:11]} 7. Nc3 {[%emt 0:00:05]} a5 {[%emt 0:00:07]} 8. a3 {[%emt 0:01:21]} Na6 {[%emt 0:00:19]} 9. e4 {[%emt 0:00:13]} a4 {[%emt 0:00:18]} 10. Qd1 {[%emt 0:00:23]} b4 {[%emt 0:00:19]} 11. Bxa6 {[%emt 0:00:03]} bxc3 {[%emt 0:00:23]} 12. Bd3 {[%emt 0:00:02]} cxb2 {[%emt 0:00:11]} 13. Bxb2 {[%emt 0:00:02]} Rb8 {[%emt 0:00:03]} 14. Qc2 {[%emt 0:00:58]} O-O {[%emt 0:00:11]} 15. O-O {[%emt 0:00:02]} c6 {[%emt 0:00:11]} 16. dxc6 {[%emt 0:00:07]} Bxc6 {[%emt 0:00:00]} 17. Qxc6 {[%emt 0:00:10]} Rxb2 {[%emt 0:00:02]} 18. Qxa4 {[%emt 0:00:18]} Qb6 {[%emt 0:00:50]} (18... e6 $142 19. Rab1 Rxb1 20. Rxb1 Qa8 21. Qxa8 Rxa8) 19. Rab1 $18 {[%emt 0:00:09]} Rc8 {[%emt 0:00:18]} 20. h3 {[%emt 0:00:10]} Rc3 {[%emt 0:00:12]} 21. Ne5 {[%emt 0:00:14]} Bf8 {[%emt 0:00:50]} 22. Nc4 {[%emt 0:01:04]} Rxb1 {[%emt 0:00:04]} (22... Qxd4 {keeps fighting.} 23. Nxb2 Qxa4 24. Nxa4 Rxd3) 23. Nxb6 $18 {[%emt 0:00:02]} Rxb6 {[%emt 0:00:01]} 24. Bb5 {[%emt 0:01:49]} Nxe4 {[%emt 0:01:57]} (24... Rc8 $142 25. Re1 e6) 25. Qa5 $18 {[%emt 0:00:04]} Rxb5 {[%emt 0:01:31]} 26. Qxb5 {[%emt 0:00:00]} Rxa3 {[%emt 0:00:01]} 27. Re1 {[%emt 0:00:08]} Nd6 {[%emt 0:00:15]} 28. Qb8 {[%emt 0:00:03]} Kg7 {[%emt 0:00:12]} 29. d5 {[%emt 0:00:11]} Ra5 {[%emt 0:00:18]} 30. Rd1 {[%emt 0:00:14]} Rc5 {[%emt 0:00:09]} 31. Ra1 {[%emt 0:00:26]} Rc8 {[%emt 0:00:07]} 32. Qb4 {[%emt 0:00:10]} h5 {[%emt 0:00:07]} 33. Ra7 {[%emt 0:00:02]} Kg8 {[%emt 0:00:03]} 34. Qa5 {[%emt 0:00:10]} Rb8 {[%emt 0:00:11]} 35. Ra8 {[%emt 0:00:05]} Rxa8 {[%emt 0:00:03]} 36. Qxa8 {[%emt 0:00:00]} h4 {[%emt 0:00:07]} 37. Kf1 {[%emt 0:00:14]} Nf5 {[%emt 0:00:02]} 38. Ke2 {[%emt 0:00:04]} Kg7 {[%emt 0:00:01]} 39. Kd3 {[%emt 0:00:03]} Nd6 {[%emt 0:00:03]} 40. Qd8 {[%emt 0:00:11]} Nf5 {[%emt 0:00:03]} 41. Qa5 {[%emt 0:00:07]} Kh7 {[%emt 0:00:08]} 42. Qa4 {[%emt 0:00:12]} Bh6 {[%emt 0:00:04]} 43. Qe8 {[%emt 0:00:08]} Kg7 {[%emt 0:00:02]} 44. g4 {[%emt 0:00:22]} hxg3 {[%emt 0:00:01]} 45. fxg3 {[%emt 0:00:00]} Bg5 {[%emt 0:00:01]} 46. g4 {[%emt 0:00:00]} Nh4 $2 {[%emt 0:00:06]} (46... Nd6 47. Qb8 f5) 47. Ke4 $18 {[%emt 0:00:09]} Bf6 {[%emt 0:00:02]} 48. Qa4 {[%emt 0:00:02]} g5 {[%emt 0:00:01]} 49. Qc6 {[%emt 0:00:04]} Ng6 {[%emt 0:00:03]} 50. d6 {[%emt 0:00:01]} exd6 {[%emt 0:00:01]} 51. Qxd6 {[%emt 0:00:01]} Nh4 {[%emt 0:00:22]} 52. Kd5 {[%emt 0:00:01]} Ng6 {[%emt 0:00:02]} 53. Kc6 {[%emt 0:00:02]} Nf4 {[%emt 0:00:07]} 54. Qa3 {[%emt 0:00:04]} Ng6 {[%emt 0:00:05]} 55. Kd7 {[%emt 0:00:01]} Ne5+ {[%emt 0:00:01]} 56. Ke8 {[%emt 0:00:02]} Ng6 {[%emt 0:00:00]} 57. Qa7 {[%emt 0:00:02]} (57. Qc5 $142 Ne5 58. h4 gxh4 59. g5) 57... Be7 {[%emt 0:00:07]} 58. Qd7 {[%emt 0:00:02]} Kg8 {[%emt 0:00:02]} 59. Qf5 {[%emt 0:00:03]} 1-0

[Event "CCT Chessable Masters D-III 2024"]
[Site "Online"]
[Date "2024.02.02"]
[Round "51"]
[White "Deac, Bogdan-Daniel"]
[Black "Shevchenko, Kirill"]
[Result "1-0"]
[ECO "A48"]
[WhiteElo "2690"]
[BlackElo "2651"]
[Annotator "TA"]
[PlyCount "141"]
[EventDate "2024.01.12"]
[EventType "k.o."]
[EventCountry "NET"]
[SourceTitle "playchess.com"]
[Source "ChessBase"]
[SourceQuality "1"]
[TimeControl "600+2"]

{[%evp 67,141,273,273,279,299,269,338,327,370,231,314,306,306,300,304,266,257,235,291,280,444,347,387,343,623,622,593,367,364,246,256,255,251,250,251,250,281,262,351,343,356,325,346,320,400,376,476,474,532,531,758,738,794,787,1181,1162,1449,1375,1632,1591,1964,1970,1870,1969,2128,2158,1750,2754,2782,2783,29966,7722,29990,29991,29991,29992]} 1. d4 {[%emt 0:00:04]} Nf6 {[%emt 0:00:06]} 2. Nf3 {[%emt 0:00:04]} g6 {[%emt 0:02:37]} 3. e3 {[%emt 0:00:03]} Bg7 {[%emt 0:00:03]} 4. Be2 {[%emt 0:00:02]} O-O {[%emt 0:00:03]} 5. O-O {[%emt 0:00:03]} c5 {[%emt 0:00:19]} 6. d5 {[%emt 0:00:14] A48: 1 d4 Nf6 2 Nf3 g6: Torre, London and Colle Systems.} d6 {[%emt 0:00:27]} 7. Nc3 {[%emt 0:00:04]} Na6 {[%emt 0:00:13]} 8. e4 {[%emt 0:00:04]} Nc7 {[%emt 0:00:03]} 9. Re1 {[%emt 0:00:10]} Rb8 {[%emt 0:00:05]} 10. a4 {[%emt 0:00:03]} a6 {[%emt 0:00:05]} 11. a5 {[%emt 0:00:05]} Bd7 $146 {[%emt 0:00:02]} ({Predecessor:} 11... b5 12. axb6 Rxb6 13. Bf1 Nd7 14. Na4 Rb8 15. c4 a5 16. h3 Na6 17. Bf4 Nb6 {1-0 Danada,T (2306)-Rybka,S (2334) SVK-ch Kezmarok 2022 (8)}) 12. Bd3 {[%emt 0:00:37]} Nb5 {[%emt 0:00:14]} 13. Bd2 {[%emt 0:00:04]} Rc8 {[%emt 0:00:20]} 14. Na4 {[%emt 0:00:14]} c4 {[%emt 0:00:21]} 15. Bf1 {[%emt 0:00:03]} Ng4 {[%emt 0:00:03]} 16. h3 {[%emt 0:01:10]} Ne5 {[%emt 0:00:03]} 17. Bb4 {[%emt 0:00:04]} Nxf3+ {[%emt 0:01:04]} 18. Qxf3 {[%emt 0:00:05]} f5 {[%emt 0:00:02]} 19. c3 {[%emt 0:00:08]} fxe4 {[%emt 0:00:44]} 20. Qxe4 {[%emt 0:00:04]} Be5 {[%emt 0:00:02]} 21. Nb6 {[%emt 0:00:11]} Rc7 {[%emt 0:00:06]} 22. g3 {[%emt 0:00:15]} Bf5 {[%emt 0:00:05]} 23. Qe3 {[%emt 0:00:14]} Bf6 {[%emt 0:00:29]} 24. h4 {[%emt 0:00:32]} Qe8 {[%emt 0:00:27]} 25. Nxc4 {[%emt 0:00:44]} Qf7 {[%emt 0:00:03]} 26. Rad1 {[%emt 0:00:04]} Qg7 {[%emt 0:00:04]} 27. Nd2 {[%emt 0:00:07]} Bg4 {[%emt 0:00:09]} 28. Be2 {[%emt 0:00:13]} Bf5 {[%emt 0:00:38]} 29. Ne4 {[%emt 0:00:05]} Be5 {[%emt 0:00:08]} 30. Ng5 {[%emt 0:00:44]} Rcc8 {[%emt 0:00:05]} 31. f4 {[%emt 0:01:04]} Bf6 {[%emt 0:00:04]} 32. Ne6 {[%emt 0:00:03]} Bxe6 {[%emt 0:00:06]} 33. Qxe6+ {[%emt 0:00:02]} Kh8 {[%emt 0:00:03]} 34. Kg2 {[%emt 0:00:09]} Nc7 {[%emt 0:00:04]} 35. Qe4 {[%emt 0:00:03]} Ne8 {[%emt 0:00:16]} 36. Bd3 {[%emt 0:00:21]} Qh6 {[%emt 0:00:04]} 37. Re3 {[%emt 0:00:11]} Ng7 {[%emt 0:00:03]} 38. Rf3 {[%emt 0:00:37]} Nf5 {[%emt 0:00:03]} 39. Rh1 {[%emt 0:00:05]} Qh5 {[%emt 0:00:04]} 40. Be2 {[%emt 0:00:06]} Nh6 {[%emt 0:00:08]} 41. Rd3 {[%emt 0:00:13]} Qf5 {[%emt 0:00:03]} 42. Bf3 {[%emt 0:00:03]} Rg8 {[%emt 0:00:05]} 43. b3 {[%emt 0:00:18]} Rg7 {[%emt 0:00:15]} (43... Qxe4 {keeps fighting.} 44. Bxe4 Rb8) 44. c4 {[%emt 0:00:06]} Qd7 {[%emt 0:00:03]} 45. Qe6 {[%emt 0:00:05]} Rc7 $2 {[%emt 0:00:04]} (45... Qxe6 46. dxe6 Nf5) 46. Qxd7 $18 {[%emt 0:00:04]} Rxd7 {[%emt 0:00:02]} 47. Re1 {[%emt 0:00:06]} Nf5 {[%emt 0:00:03]} 48. Bc3 {[%emt 0:00:04]} Bxc3 {[%emt 0:00:04]} 49. Rxc3 {[%emt 0:00:02]} Rc7 {[%emt 0:00:06]} 50. b4 {[%emt 0:00:03]} Kg8 {[%emt 0:00:04]} 51. Be4 {[%emt 0:00:07]} Nd4 {[%emt 0:00:06]} 52. Rd1 {[%emt 0:00:08]} Nb5 {[%emt 0:00:02]} 53. Rcc1 {[%emt 0:00:03]} (53. cxb5 Rxc3 54. bxa6 bxa6 $11) 53... Na7 {[%emt 0:00:04]} 54. c5 {[%emt 0:00:02]} Kf8 {[%emt 0:00:03]} 55. g4 {[%emt 0:00:06]} Ke8 {[%emt 0:00:03]} 56. g5 {[%emt 0:00:03]} Kd8 {[%emt 0:00:02]} 57. Kf3 {[%emt 0:00:03]} Nb5 {[%emt 0:00:03]} 58. Kg4 {[%emt 0:00:04]} Rf7 {[%emt 0:00:03]} 59. f5 {[%emt 0:00:04]} gxf5+ {[%emt 0:00:03]} 60. Bxf5 {[%emt 0:00:02]} Na7 {[%emt 0:00:07]} 61. h5 {[%emt 0:00:04]} Nb5 {[%emt 0:00:03]} 62. h6 {[%emt 0:00:04]} dxc5 {[%emt 0:00:05]} 63. bxc5 {[%emt 0:00:03]} Na3 {[%emt 0:00:02]} 64. Rf1 {[%emt 0:00:07]} Rf8 {[%emt 0:00:04]} 65. Be6 {[%emt 0:00:04]} Re8 {[%emt 0:00:02]} 66. Rf7 {[%emt 0:00:04]} Nb5 {[%emt 0:00:03]} 67. Rxh7 {[%emt 0:00:03]} Nd4 {[%emt 0:00:03]} 68. g6 {[%emt 0:00:03]} b6 {[%emt 0:00:12]} 69. axb6 {[%emt 0:00:03]} Rb7 {[%emt 0:00:03]} 70. c6 {[%emt 0:00:05]} Nxe6 {[%emt 0:00:03]} 71. cxb7 {[%emt 0:00:03]} 1-0

[Event "CCT Chessable Masters D-III 2024"]
[Site "Online"]
[Date "2024.02.02"]
[Round "51"]
[White "Shevchenko, Kirill"]
[Black "Deac, Bogdan-Daniel"]
[Result "0-1"]
[ECO "E51"]
[WhiteElo "2651"]
[BlackElo "2690"]
[Annotator "TA"]
[PlyCount "116"]
[EventDate "2024.01.12"]
[EventType "k.o."]
[EventCountry "NET"]
[SourceTitle "playchess.com"]
[Source "ChessBase"]
[SourceQuality "1"]
[TimeControl "600+2"]

{[%evp 16,116,8,16,6,24,23,23,13,0,12,0,0,-8,-6,-20,-10,-66,-72,-60,-29,-78,-65,-70,-69,-146,-147,-158,-162,-176,-153,-201,-219,-222,-194,-202,-200,-378,-369,-625,-642,-638,-625,-666,-668,-810,-729,-1494,-1501,-1772,-1794,-2185,-2015,-2834,-2615,-2483,-1228,-2093,-1750,-4631,-761,-5197,-6274,-6274,-5897,-6095,-5941,-29965,-29966,-29966,-29967,-29975,-29973,-29976,-29974,-29974,-29975,-29976,-29976,-29976,-29977,-29978,-29977,-29978,-29979,-29978,-29979,-29980,-29981,-29981,-29982,-29982,-29982,-29983,-29981,-29981,-29982,-29982,-29980,-29976,-29972,-29986,-29987]} 1. d4 {[%emt 0:00:12]} Nf6 {[%emt 0:00:05]} 2. c4 {[%emt 0:00:01]} e6 {[%emt 0:00:00]} 3. Nc3 {[%emt 0:00:00]} Bb4 {[%emt 0:00:01]} 4. e3 {[%emt 0:00:07]} O-O {[%emt 0:00:02]} 5. Bd3 {[%emt 0:00:01]} d5 {[%emt 0:00:00]} 6. a3 {[%emt 0:00:01]} dxc4 {[%emt 0:00:01]} 7. Bxc4 {[%emt 0:00:01]} Be7 {[%emt 0:00:01]} 8. Nf3 {[%emt 0:00:15]} c5 {[%emt 0:00:01]} 9. O-O {[%emt 0:00:00]} a6 {[%emt 0:00:03]} 10. dxc5 {[%emt 0:00:06]} Qxd1 {[%emt 0:00:01]} 11. Rxd1 {[%emt 0:00:01] And now Na4 would win.} Bxc5 {[%emt 0:00:01] White has an edge.} 12. b4 {[%emt 0:00:51]} Be7 {[%emt 0:00:02]} 13. e4 {[%emt 0:00:14]} b5 {[%emt 0:00:51]} 14. Bd3 {[%emt 0:01:37]} Bb7 {[%emt 0:00:03]} 15. Bg5 {[%emt 0:00:02]} h6 {[%emt 0:00:14]} 16. Bh4 {[%emt 0:00:23]} ({White should try} 16. Be3 $11) 16... Rc8 {[%emt 0:00:51]} 17. Rac1 {[%emt 0:00:09]} Nbd7 {[%emt 0:02:18][%cal Bb8d7,Bd7b6,Bb6c4,Bc4a3][%mdl 32]} 18. Bb1 {[%emt 0:00:02]} (18. Bg3 $11 {was preferrable.}) 18... g5 {[%emt 0:01:16]} 19. Bg3 {[%emt 0:00:03]} Nb6 $36 {[%emt 0:00:01][%mdl 2048] Black fights for an advantage.} 20. h4 {[%emt 0:00:30] [#] White is on the road to losing.} ({White should play} 20. Nd2 $15) 20... Nc4 $1 $17 {[%emt 0:00:44]} 21. hxg5 {[%emt 0:02:44]} hxg5 {[%emt 0:00:02]} 22. Nxg5 {[%emt 0:00:29]} Nxa3 {[%emt 0:00:42]} 23. Ba2 {[%emt 0:00:59]} (23. Bd3 $17) 23... Bxb4 $19 {[%emt 0:01:05]} 24. Be5 {[%emt 0:00:01]} Ng4 {[%emt 0:00:26]} 25. Bd4 {[%emt 0:00:01][%cal Og5e6]} Nc4 {[%emt 0:00:05] Active counter play!} 26. f3 $2 {[%emt 0:00:11] [#]} (26. Ne2 {keeps fighting.}) 26... e5 {[%emt 0:01:11]} 27. Ba7 {[%emt 0:01:13]} (27. Bf2 Nxf2 28. Kxf2) 27... Rxa7 {[%emt 0:00:07]} 28. fxg4 {[%emt 0:00:01]} Bc5+ {[%emt 0:00:01]} 29. Kh2 {[%emt 0:00:06]} Be3 {[%emt 0:00:01][%csl LRc1,LRg5]} 30. Bxc4 {[%emt 0:00:13]} Bxg5 {[%emt 0:00:32] A strong pair of Bishops.} 31. Bxf7+ {[%emt 0:00:02]} Kxf7 {[%emt 0:00:07]} 32. Rd7+ {[%emt 0:00:01]} Ke8 {[%emt 0:00:02]} 33. Rcd1 {[%emt 0:00:05]} Rxc3 {[%emt 0:00:02]} 34. Rg7 {[%emt 0:00:03]} Bf4+ {[%emt 0:00:02]} 35. Kh1 {[%emt 0:00:01]} Bxe4 {[%emt 0:00:02]} 36. Rxa7 {[%emt 0:00:05]} Rh3+ {[%emt 0:00:01]} 37. Kg1 {[%emt 0:00:00]} Be3+ {[%emt 0:00:01]} 38. Kf1 {[%emt 0:00:01]} Rh1+ {[%emt 0:00:01]} 39. Ke2 {[%emt 0:00:00]} Rxd1 {[%emt 0:00:00]} 40. Kxe3 {[%emt 0:00:03]} Bxg2 {[%emt 0:00:09]} 41. Rxa6 {[%emt 0:00:00][%mdl 4096] Endgame. KRB-KR} Ke7 {[%emt 0:00:01] Black mates.} 42. g5 {[%emt 0:00:02]} Bd5 {[%emt 0:00:03]} 43. g6 {[%emt 0:00:05]} Rg1 {[%emt 0:00:01]} 44. Rb6 {[%emt 0:00:02]} Be6 {[%emt 0:00:01]} 45. Rxb5 {[%emt 0:00:02]} Kf6 {[%emt 0:00:01]} 46. Ke4 {[%emt 0:00:02]} Rg4+ {[%emt 0:00:02]} ({Less strong is} 46... Kxg6 47. Rxe5 Kf6 48. Rb5 $17) 47. Kf3 {[%emt 0:00:01]} Rxg6 {[%emt 0:00:00]} ({Inferior is} 47... Kxg6 48. Rxe5 Bf5 49. Re8 $11) 48. Rb8 {[%emt 0:00:02]} Rg7 {[%emt 0:00:02]} 49. Rf8+ {[%emt 0:00:01]} Ke7 {[%emt 0:00:01]} 50. Rb8 {[%emt 0:00:00]} Bd5+ {[%emt 0:00:01]} 51. Ke3 {[%emt 0:00:01]} Rg3+ {[%emt 0:00:01]} 52. Ke2 {[%emt 0:00:01]} Ra3 {[%emt 0:00:00]} 53. Rb6 {[%emt 0:00:01]} Kd7 {[%emt 0:00:02]} 54. Rf6 {[%emt 0:00:02]} Be6 {[%emt 0:00:01]} 55. Rh6 {[%emt 0:00:01]} Kd6 {[%emt 0:00:01]} 56. Rh8 {[%emt 0:00:01]} Kd5 {[%emt 0:00:01]} 57. Rd8+ {[%emt 0:00:02]} Ke4 {[%emt 0:00:01]} 58. Rd2 {[%emt 0:00:01]} Ra2 {[%emt 0:00:03] Weighted Error Value: White=1.08/Black=0.22 (precise) .  Mistake:       	White=6     	---        Inaccurate:     	---       	Black=1      OK:         	White=4     	Black=7      Best:        	---       	Black=6      Strong:       	---       	Black=1} 0-1